[Event "Titled Tuesday Blitz March 21 Late 2023"]
[White "victormago"]
[Black "Hernandez Gonzalez, William"]
[BlackFideId "3509915"]
[WhiteElo "2339"]
[BlackElo "2374"]
[Result "1-0"]
[Round "02"]
[TimeControl "180+2"]
[Date "2023.03.21"]
[WhiteClock "0:00:19"]
[BlackClock "0:00:01"]

1. d4 {[%clk 0:03:00]}  Nf6 {[%clk 0:02:59]} 2. c4 {[%clk 0:02:59]}  e6 {[%clk 0:03:00]} 3. Nc3 {[%clk 0:02:59]}  Bb4 {[%clk 0:03:00]} 4. Qc2 {[%clk 0:02:58]}  d5 {[%clk 0:02:59]} 5. cxd5 {[%clk 0:02:56]}  exd5 {[%clk 0:02:59]} 6. Nf3 {[%clk 0:02:56]}  h6 {[%clk 0:02:56]} 7. Bf4 {[%clk 0:02:55]}  c6 {[%clk 0:02:56]} 8. e3 {[%clk 0:02:55]}  Nbd7 {[%clk 0:02:47]} 9. h3 {[%clk 0:02:55]}  Ne4 {[%clk 0:02:36]} 10. Bd3 {[%clk 0:02:53]}  Ndf6 {[%clk 0:02:36]} 11. O-O {[%clk 0:02:53]}  Bxc3 {[%clk 0:02:07]} 12. bxc3 {[%clk 0:02:50]}  g5 {[%clk 0:02:07]} 13. Be5 {[%clk 0:02:48]}  g4 {[%clk 0:02:07]} 14. hxg4 {[%clk 0:02:43]}  Bxg4 {[%clk 0:02:08]} 15. Bxe4 {[%clk 0:02:16]}  dxe4 {[%clk 0:02:06]} 16. Bxf6 {[%clk 0:02:16]}  Qxf6 {[%clk 0:02:06]} 17. Qxe4+ {[%clk 0:02:16]}  Be6 {[%clk 0:02:07]} 18. Qe5 {[%clk 0:02:15]}  Qxe5 {[%clk 0:02:07]} 19. Nxe5 {[%clk 0:02:15]}  Rg8 {[%clk 0:02:07]} 20. Rfb1 {[%clk 0:02:12]}  O-O-O {[%clk 0:02:03]} 21. Kh2 {[%clk 0:02:01]}  h5 {[%clk 0:02:02]} 22. a4 {[%clk 0:01:59]}  h4 {[%clk 0:02:01]} 23. a5 {[%clk 0:01:57]}  f6 {[%clk 0:01:44]} 24. Nf3 {[%clk 0:01:54]}  Rg4 {[%clk 0:01:41]} 25. a6 {[%clk 0:01:52]}  b6 {[%clk 0:01:37]} 26. Nd2 {[%clk 0:01:42]}  Rdg8 {[%clk 0:01:36]} 27. Rg1 {[%clk 0:01:42]}  Kc7 {[%clk 0:01:27]} 28. f3 {[%clk 0:01:36]}  Rg3 {[%clk 0:01:25]} 29. Ne4 {[%clk 0:01:36]}  R3g6 {[%clk 0:01:23]} 30. g4 {[%clk 0:01:29]}  Bc8 {[%clk 0:01:01]} 31. Nf2 {[%clk 0:01:22]}  Rg5 {[%clk 0:00:58]} 32. e4 {[%clk 0:01:16]}  Rb5 {[%clk 0:00:58]} 33. Rgb1 {[%clk 0:01:12]}  Rxb1 {[%clk 0:00:57]} 34. Rxb1 {[%clk 0:01:12]}  Bxa6 {[%clk 0:00:58]} 35. Kh3 {[%clk 0:01:12]}  Be2 {[%clk 0:00:55]} 36. f4 {[%clk 0:01:09]}  Rh8 {[%clk 0:00:53]} 37. Re1 {[%clk 0:01:07]}  Bc4 {[%clk 0:00:51]} 38. e5 {[%clk 0:01:06]}  fxe5 {[%clk 0:00:50]} 39. dxe5 {[%clk 0:01:07]}  a5 {[%clk 0:00:48]} 40. f5 {[%clk 0:01:07]}  a4 {[%clk 0:00:47]} 41. e6 {[%clk 0:01:01]}  Kd6 {[%clk 0:00:43]} 42. g5 {[%clk 0:01:00]}  Rf8 {[%clk 0:00:37]} 43. Kg4 {[%clk 0:00:58]}  a3 {[%clk 0:00:31]} 44. Ne4+ {[%clk 0:00:58]}  Ke7 {[%clk 0:00:30]} 45. Nd2 {[%clk 0:00:53]}  Bd5 {[%clk 0:00:20]} 46. c4 {[%clk 0:00:53]}  Bg2 {[%clk 0:00:20]} 47. Ra1 {[%clk 0:00:43]}  Ra8 {[%clk 0:00:20]} 48. Kxh4 {[%clk 0:00:37]}  b5 {[%clk 0:00:20]} 49. cxb5 {[%clk 0:00:37]}  cxb5 {[%clk 0:00:20]} 50. Kg4 {[%clk 0:00:37]}  b4 {[%clk 0:00:17]} 51. Kf4 {[%clk 0:00:37]}  Bd5 {[%clk 0:00:16]} 52. Ke5 {[%clk 0:00:37]}  Ra5 {[%clk 0:00:16]} 53. f6+ {[%clk 0:00:36]}  Ke8 {[%clk 0:00:16]} 54. Kd6 {[%clk 0:00:35]}  Bg2 {[%clk 0:00:04]} 55. g6 {[%clk 0:00:34]}  Ra6+ {[%clk 0:00:04]} 56. Ke5 {[%clk 0:00:34]}  Ra5+ {[%clk 0:00:04]} 57. Kf4 {[%clk 0:00:34]}  Bd5 {[%clk 0:00:04]} 58. e7 {[%clk 0:00:23]}  b3 {[%clk 0:00:04]} 59. Nxb3 {[%clk 0:00:24]}  Bxb3 {[%clk 0:00:05]} 60. Rh1 {[%clk 0:00:22]}  Bg8 {[%clk 0:00:01]} 61. Rh8 {[%clk 0:00:19]}  Ra4+ {[%clk 0:00:01]} 62. Kg5 {[%clk 0:00:19]}  Ra5+ {[%clk 0:00:01]} 63. Kh6 {[%clk 0:00:19]} 1-0


[Site "https://www.chess.com"]

[Event "Titled Tuesday Blitz March 21 Late 2023"]
[White "Storn, Justin"]
[Black "Fernandez Guillen, Ernesto J."]
[WhiteFideId "30922720"]
[BlackFideId "3512428"]
[WhiteElo "2310"]
[BlackElo "2423"]
[Result "0-1"]
[Round "02"]
[TimeControl "180+2"]
[Date "2023.03.21"]
[WhiteClock "0:00:02"]
[BlackClock "0:00:13"]

1. d4 {[%clk 0:03:00]}  Nf6 {[%clk 0:02:51]} 2. c4 {[%clk 0:03:01]}  g6 {[%clk 0:02:50]} 3. Nc3 {[%clk 0:03:01]}  Bg7 {[%clk 0:02:44]} 4. e4 {[%clk 0:03:02]}  d6 {[%clk 0:02:38]} 5. Nf3 {[%clk 0:03:02]}  O-O {[%clk 0:02:39]} 6. Be2 {[%clk 0:03:03]}  e5 {[%clk 0:02:38]} 7. Be3 {[%clk 0:03:04]}  Nc6 {[%clk 0:02:38]} 8. d5 {[%clk 0:03:04]}  Ne7 {[%clk 0:02:38]} 9. Nd2 {[%clk 0:03:05]}  Ne8 {[%clk 0:02:39]} 10. Qc2 {[%clk 0:03:05]}  f5 {[%clk 0:02:39]} 11. f3 {[%clk 0:03:05]}  f4 {[%clk 0:02:40]} 12. Bf2 {[%clk 0:03:05]}  b6 {[%clk 0:02:40]} 13. g4 {[%clk 0:03:04]}  fxg3 {[%clk 0:02:37]} 14. hxg3 {[%clk 0:03:05]}  a5 {[%clk 0:02:36]} 15. Be3 {[%clk 0:03:05]}  Rf7 {[%clk 0:02:29]} 16. O-O-O {[%clk 0:03:05]}  Nf6 {[%clk 0:02:18]} 17. g4 {[%clk 0:03:05]}  Nd7 {[%clk 0:02:17]} 18. Rh3 {[%clk 0:02:50]}  Nc5 {[%clk 0:02:14]} 19. Rdh1 {[%clk 0:02:50]}  Bf8 {[%clk 0:02:12]} 20. Nf1 {[%clk 0:02:38]}  Ba6 {[%clk 0:01:59]} 21. Ng3 {[%clk 0:02:30]}  Qd7 {[%clk 0:01:57]} 22. a4 {[%clk 0:01:29]}  Rb8 {[%clk 0:01:49]} 23. b3 {[%clk 0:01:13]}  Rb7 {[%clk 0:01:14]} 24. Bd1 {[%clk 0:01:13]}  Nc8 {[%clk 0:01:12]} 25. Bg5 {[%clk 0:00:53]}  Na7 {[%clk 0:01:08]} 26. Qh2 {[%clk 0:00:36]}  Nd3+ {[%clk 0:00:58]} 27. Kd2 {[%clk 0:00:34]}  Nf4 {[%clk 0:00:59]} 28. Rh4 {[%clk 0:00:28]}  c6 {[%clk 0:00:36]} 29. Nf1 {[%clk 0:00:17]}  b5 {[%clk 0:00:13]} 30. dxc6 {[%clk 0:00:17]}  Qxc6 {[%clk 0:00:12]} 31. axb5 {[%clk 0:00:16]}  Bxb5 {[%clk 0:00:12]} 32. cxb5 {[%clk 0:00:15]}  Nxb5 {[%clk 0:00:13]} 33. Nxb5 {[%clk 0:00:12]}  Qxb5 {[%clk 0:00:14]} 34. Bxf4 {[%clk 0:00:12]}  exf4 {[%clk 0:00:14]} 35. Ke1 {[%clk 0:00:10]}  Bg7 {[%clk 0:00:13]} 36. Qc2 {[%clk 0:00:09]}  Rbc7 {[%clk 0:00:11]} 37. Qe2 {[%clk 0:00:04]}  Qb6 {[%clk 0:00:11]} 38. Nd2 {[%clk 0:00:04]}  Rc1 {[%clk 0:00:10]} 39. Kf1 {[%clk 0:00:03]}  Bc3 {[%clk 0:00:10]} 40. Kg2 {[%clk 0:00:04]}  Qd4 {[%clk 0:00:10]} 41. Nc4 {[%clk 0:00:04]}  Re7 {[%clk 0:00:08]} 42. Rh6 {[%clk 0:00:02]}  d5 {[%clk 0:00:08]} 43. exd5 {[%clk 0:00:02]}  Rxe2+ {[%clk 0:00:08]} 44. Bxe2 {[%clk 0:00:03]}  Rxh1 {[%clk 0:00:09]} 45. Rxh1 {[%clk 0:00:03]}  Qxd5 {[%clk 0:00:09]} 46. Rd1 {[%clk 0:00:03]}  Qe6 {[%clk 0:00:10]} 47. Rd8+ {[%clk 0:00:03]}  Kg7 {[%clk 0:00:10]} 48. Kf1 {[%clk 0:00:04]}  Kh6 {[%clk 0:00:10]} 49. Rd6 {[%clk 0:00:04]}  Qe7 {[%clk 0:00:10]} 50. Rd5 {[%clk 0:00:04]}  Qh4 {[%clk 0:00:10]} 51. Bd3 {[%clk 0:00:03]}  Qe1+ {[%clk 0:00:09]} 52. Kg2 {[%clk 0:00:04]}  Qg3+ {[%clk 0:00:10]} 53. Kf1 {[%clk 0:00:04]}  Qxf3+ {[%clk 0:00:10]} 54. Kg1 {[%clk 0:00:04]}  Qxd5 {[%clk 0:00:11]} 55. g5+ {[%clk 0:00:03]}  Qxg5+ {[%clk 0:00:11]} 56. Kf2 {[%clk 0:00:03]}  Qg3+ {[%clk 0:00:12]} 57. Kf1 {[%clk 0:00:03]}  Qxd3+ {[%clk 0:00:12]} 58. Kf2 {[%clk 0:00:04]}  a4 {[%clk 0:00:11]} 59. Ne5 {[%clk 0:00:03]}  Bxe5 {[%clk 0:00:11]} 60. bxa4 {[%clk 0:00:03]}  Qe3+ {[%clk 0:00:11]} 61. Kg2 {[%clk 0:00:03]}  Qg3+ {[%clk 0:00:11]} 62. Kf1 {[%clk 0:00:04]}  f3 {[%clk 0:00:11]} 63. a5 {[%clk 0:00:02]}  Qg2+ {[%clk 0:00:12]} 64. Ke1 {[%clk 0:00:02]}  Qe2# {[%clk 0:00:13]} 0-1


[Site "https://www.chess.com"]

[Event "Titled Tuesday Blitz March 21 Late 2023"]
[White "Maatman, Nick"]
[Black "Wang, Alexander J"]
[WhiteFideId "1040391"]
[BlackFideId "30955270"]
[WhiteElo "2706"]
[BlackElo "2261"]
[Result "1-0"]
[Round "02"]
[TimeControl "180+2"]
[Date "2023.03.21"]
[WhiteClock "0:01:10"]
[BlackClock "0:00:14"]

1. d4 {[%clk 0:03:00]}  d5 {[%clk 0:02:58]} 2. c4 {[%clk 0:03:01]}  e6 {[%clk 0:02:58]} 3. Nf3 {[%clk 0:03:01]}  c5 {[%clk 0:02:58]} 4. cxd5 {[%clk 0:03:00]}  exd5 {[%clk 0:02:59]} 5. Nc3 {[%clk 0:03:00]}  Nc6 {[%clk 0:02:59]} 6. dxc5 {[%clk 0:02:58]}  d4 {[%clk 0:03:00]} 7. Na4 {[%clk 0:02:58]}  Bxc5 {[%clk 0:03:00]} 8. Nxc5 {[%clk 0:02:59]}  Qa5+ {[%clk 0:03:00]} 9. Bd2 {[%clk 0:02:57]}  Qxc5 {[%clk 0:03:00]} 10. Rc1 {[%clk 0:02:53]}  Qb6 {[%clk 0:02:58]} 11. e3 {[%clk 0:02:53]}  dxe3 {[%clk 0:02:48]} 12. Bxe3 {[%clk 0:02:54]}  Qb4+ {[%clk 0:02:48]} 13. Qd2 {[%clk 0:02:55]}  Qxd2+ {[%clk 0:02:48]} 14. Nxd2 {[%clk 0:02:55]}  Nge7 {[%clk 0:02:47]} 15. Bc4 {[%clk 0:02:56]}  O-O {[%clk 0:02:45]} 16. O-O {[%clk 0:02:56]}  Nf5 {[%clk 0:02:42]} 17. Bc5 {[%clk 0:02:42]}  Rd8 {[%clk 0:02:36]} 18. Ne4 {[%clk 0:02:41]}  b6 {[%clk 0:02:28]} 19. Ba3 {[%clk 0:02:39]}  Bb7 {[%clk 0:02:22]} 20. Ng3 {[%clk 0:02:29]}  Nxg3 {[%clk 0:02:19]} 21. fxg3 {[%clk 0:02:24]}  Ne5 {[%clk 0:02:07]} 22. Bb3 {[%clk 0:02:24]}  Rd2 {[%clk 0:01:55]} 23. Rc2 {[%clk 0:02:16]}  Rad8 {[%clk 0:01:40]} 24. Re1 {[%clk 0:02:05]}  Rxg2+ {[%clk 0:01:21]} 25. Rxg2 {[%clk 0:01:16]}  Nf3+ {[%clk 0:01:09]} 26. Kf1 {[%clk 0:01:17]}  Nxe1 {[%clk 0:01:06]} 27. Rf2 {[%clk 0:01:14]}  Nd3 {[%clk 0:00:56]} 28. Rxf7 {[%clk 0:01:11]}  Kh8 {[%clk 0:00:14]} 29. Rxb7 {[%clk 0:01:10]} 1-0


[Site "https://www.chess.com"]

[Event "Titled Tuesday Blitz March 21 Late 2023"]
[White "Preotu, Razvan"]
[Black "Michalski, Olaf"]
[WhiteFideId "2613280"]
[BlackFideId "1106740"]
[WhiteElo "2407"]
[BlackElo "2173"]
[Result "1-0"]
[Round "02"]
[TimeControl "180+2"]
[Date "2023.03.21"]
[WhiteClock "0:00:19"]
[BlackClock "0:00:02"]

1. e4 {[%clk 0:03:00]}  c5 {[%clk 0:02:55]} 2. Nf3 {[%clk 0:03:00]}  a6 {[%clk 0:02:52]} 3. c3 {[%clk 0:02:57]}  Nf6 {[%clk 0:02:51]} 4. e5 {[%clk 0:02:57]}  Nd5 {[%clk 0:02:52]} 5. d4 {[%clk 0:02:58]}  e6 {[%clk 0:02:48]} 6. c4 {[%clk 0:02:56]}  Nb6 {[%clk 0:02:47]} 7. d5 {[%clk 0:02:46]}  d6 {[%clk 0:02:47]} 8. Nc3 {[%clk 0:02:30]}  dxe5 {[%clk 0:02:41]} 9. Nxe5 {[%clk 0:02:31]}  exd5 {[%clk 0:02:37]} 10. cxd5 {[%clk 0:02:32]}  Bd6 {[%clk 0:02:37]} 11. Nf3 {[%clk 0:02:22]}  O-O {[%clk 0:02:34]} 12. Bg5 {[%clk 0:02:10]}  Re8+ {[%clk 0:02:14]} 13. Be2 {[%clk 0:02:10]}  f6 {[%clk 0:02:02]} 14. Bh4 {[%clk 0:01:27]}  Bg4 {[%clk 0:01:43]} 15. O-O {[%clk 0:01:21]}  N8d7 {[%clk 0:01:43]} 16. Re1 {[%clk 0:01:03]}  Qc7 {[%clk 0:01:36]} 17. h3 {[%clk 0:01:03]}  Bxf3 {[%clk 0:01:10]} 18. Bxf3 {[%clk 0:01:04]}  g5 {[%clk 0:01:11]} 19. Bg3 {[%clk 0:00:52]}  Bxg3 {[%clk 0:01:10]} 20. fxg3 {[%clk 0:00:53]}  Qxg3 {[%clk 0:01:10]} 21. d6 {[%clk 0:00:48]}  Rxe1+ {[%clk 0:00:28]} 22. Qxe1 {[%clk 0:00:49]}  Qxd6 {[%clk 0:00:23]} 23. Bxb7 {[%clk 0:00:49]}  Rb8 {[%clk 0:00:17]} 24. Bxa6 {[%clk 0:00:43]}  Qd4+ {[%clk 0:00:11]} 25. Kh1 {[%clk 0:00:43]}  Ne5 {[%clk 0:00:11]} 26. Rd1 {[%clk 0:00:41]}  Qf4 {[%clk 0:00:11]} 27. Qe2 {[%clk 0:00:29]}  Kg7 {[%clk 0:00:06]} 28. Ne4 {[%clk 0:00:20]}  c4 {[%clk 0:00:06]} 29. Rf1 {[%clk 0:00:20]}  Qh4 {[%clk 0:00:04]} 30. Nxf6 {[%clk 0:00:19]}  Rf8 {[%clk 0:00:02]} 31. Qxe5 {[%clk 0:00:19]} 1-0


[Site "https://www.chess.com"]

[Event "Titled Tuesday Blitz March 21 Late 2023"]
[White "Bitoon, Richard"]
[Black "Oliveira, Tiago Batista"]
[WhiteFideId "5201110"]
[BlackFideId "2108291"]
[WhiteElo "2374"]
[BlackElo "1962"]
[Result "1-0"]
[Round "02"]
[TimeControl "180+2"]
[Date "2023.03.21"]
[WhiteClock "0:00:20"]
[BlackClock "0:00:03"]

1. e4 {[%clk 0:03:00]}  c5 {[%clk 0:02:58]} 2. c3 {[%clk 0:03:00]}  Nc6 {[%clk 0:02:57]} 3. d4 {[%clk 0:03:00]}  cxd4 {[%clk 0:02:57]} 4. cxd4 {[%clk 0:03:01]}  d5 {[%clk 0:02:57]} 5. exd5 {[%clk 0:03:02]}  Qxd5 {[%clk 0:02:56]} 6. Nf3 {[%clk 0:03:03]}  Bg4 {[%clk 0:02:50]} 7. Be2 {[%clk 0:03:03]}  Nf6 {[%clk 0:02:49]} 8. Nc3 {[%clk 0:03:03]}  Qd8 {[%clk 0:02:39]} 9. d5 {[%clk 0:03:03]}  Nb8 {[%clk 0:02:33]} 10. Bg5 {[%clk 0:02:48]}  Nbd7 {[%clk 0:02:30]} 11. h3 {[%clk 0:02:47]}  Bxf3 {[%clk 0:02:29]} 12. Bxf3 {[%clk 0:02:48]}  Qa5 {[%clk 0:02:28]} 13. O-O {[%clk 0:02:41]}  g6 {[%clk 0:02:03]} 14. a3 {[%clk 0:02:39]}  Bg7 {[%clk 0:02:03]} 15. b4 {[%clk 0:02:40]}  Qd8 {[%clk 0:01:36]} 16. d6 {[%clk 0:02:31]}  e6 {[%clk 0:01:32]} 17. Bxb7 {[%clk 0:02:30]}  Rb8 {[%clk 0:01:28]} 18. Bc6 {[%clk 0:02:30]}  Qb6 {[%clk 0:01:14]} 19. Bxf6 {[%clk 0:02:00]}  Bxf6 {[%clk 0:01:12]} 20. Bxd7+ {[%clk 0:02:01]}  Kxd7 {[%clk 0:01:10]} 21. Ne4 {[%clk 0:01:49]}  Bd4 {[%clk 0:01:01]} 22. Rc1 {[%clk 0:01:44]}  Rhc8 {[%clk 0:00:58]} 23. Qf3 {[%clk 0:01:07]}  f5 {[%clk 0:00:48]} 24. Ng5 {[%clk 0:00:46]}  e5 {[%clk 0:00:37]} 25. Nf7 {[%clk 0:00:28]}  Ke6 {[%clk 0:00:20]} 26. Qb3+ {[%clk 0:00:26]}  Kf6 {[%clk 0:00:20]} 27. d7 {[%clk 0:00:26]}  Rxc1 {[%clk 0:00:17]} 28. Rxc1 {[%clk 0:00:27]}  Bxf2+ {[%clk 0:00:15]} 29. Kh1 {[%clk 0:00:22]}  Bg3 {[%clk 0:00:05]} 30. d8=Q+ {[%clk 0:00:19]}  Rxd8 {[%clk 0:00:05]} 31. Nxd8 {[%clk 0:00:20]}  Qxd8 {[%clk 0:00:03]} 32. Qxg3 {[%clk 0:00:20]} 1-0


[Site "https://www.chess.com"]

[Event "Titled Tuesday Blitz March 21 Late 2023"]
[White "Matlakov, Maxim"]
[Black "Quinones Garcia, Santiago"]
[WhiteFideId "4168003"]
[BlackFideId "4408497"]
[WhiteElo "2666"]
[BlackElo "2263"]
[Result "1-0"]
[Round "02"]
[TimeControl "180+2"]
[Date "2023.03.21"]
[WhiteClock "0:00:49"]
[BlackClock "0:00:02"]

1. d4 {[%clk 0:03:00]}  Nf6 {[%clk 0:02:56]} 2. Nf3 {[%clk 0:02:59]}  g6 {[%clk 0:02:53]} 3. Bf4 {[%clk 0:02:56]}  Bg7 {[%clk 0:02:52]} 4. e3 {[%clk 0:02:57]}  d6 {[%clk 0:02:53]} 5. h3 {[%clk 0:02:57]}  O-O {[%clk 0:02:54]} 6. Be2 {[%clk 0:02:57]}  Nc6 {[%clk 0:02:54]} 7. Bh2 {[%clk 0:02:57]}  Nd7 {[%clk 0:02:51]} 8. O-O {[%clk 0:02:56]}  e5 {[%clk 0:02:51]} 9. c3 {[%clk 0:02:56]}  f5 {[%clk 0:02:49]} 10. b4 {[%clk 0:02:50]}  e4 {[%clk 0:02:47]} 11. Nfd2 {[%clk 0:02:48]}  Nf6 {[%clk 0:02:45]} 12. b5 {[%clk 0:02:47]}  Ne7 {[%clk 0:02:45]} 13. c4 {[%clk 0:02:46]}  g5 {[%clk 0:02:40]} 14. Nc3 {[%clk 0:02:45]}  Ng6 {[%clk 0:02:39]} 15. c5 {[%clk 0:02:25]}  Qe7 {[%clk 0:02:35]} 16. cxd6 {[%clk 0:02:20]}  cxd6 {[%clk 0:02:34]} 17. Qb3+ {[%clk 0:02:21]}  Kh8 {[%clk 0:02:13]} 18. Nd5 {[%clk 0:02:07]}  Nxd5 {[%clk 0:02:06]} 19. Qxd5 {[%clk 0:02:08]}  Rd8 {[%clk 0:02:05]} 20. Bc4 {[%clk 0:02:04]}  Qf6 {[%clk 0:01:39]} 21. Rac1 {[%clk 0:01:58]}  Ne7 {[%clk 0:01:21]} 22. Qf7 {[%clk 0:01:57]}  d5 {[%clk 0:01:18]} 23. Qxf6 {[%clk 0:01:53]}  Bxf6 {[%clk 0:01:19]} 24. Be2 {[%clk 0:01:47]}  Bd7 {[%clk 0:01:16]} 25. Nb3 {[%clk 0:01:45]}  b6 {[%clk 0:01:13]} 26. Rc7 {[%clk 0:01:44]}  Kg8 {[%clk 0:01:01]} 27. a4 {[%clk 0:01:38]}  Kf7 {[%clk 0:00:57]} 28. f3 {[%clk 0:01:35]}  Be6 {[%clk 0:00:46]} 29. a5 {[%clk 0:01:26]}  Rac8 {[%clk 0:00:35]} 30. Rfc1 {[%clk 0:01:11]}  Rxc7 {[%clk 0:00:23]} 31. Bxc7 {[%clk 0:01:04]}  Rd7 {[%clk 0:00:23]} 32. axb6 {[%clk 0:01:02]}  axb6 {[%clk 0:00:20]} 33. Bxb6 {[%clk 0:01:03]}  Rb7 {[%clk 0:00:19]} 34. Bc7 {[%clk 0:00:59]}  Nc8 {[%clk 0:00:12]} 35. Na5 {[%clk 0:00:53]}  Ra7 {[%clk 0:00:11]} 36. b6 {[%clk 0:00:54]}  Nxb6 {[%clk 0:00:04]} 37. Bxb6 {[%clk 0:00:55]}  Re7 {[%clk 0:00:03]} 38. Nc6 {[%clk 0:00:52]}  Rb7 {[%clk 0:00:03]} 39. Nd8+ {[%clk 0:00:50]}  Bxd8 {[%clk 0:00:03]} 40. Bxd8 {[%clk 0:00:51]}  h6 {[%clk 0:00:02]} 41. fxe4 {[%clk 0:00:49]} 1-0


[Site "https://www.chess.com"]

[Event "Titled Tuesday Blitz March 21 Late 2023"]
[White "Kozlov, Gennady"]
[Black "Narayanan.S.L"]
[WhiteFideId "4191668"]
[BlackFideId "5058422"]
[WhiteElo "2356"]
[BlackElo "2547"]
[Result "1-0"]
[Round "02"]
[TimeControl "180+2"]
[Date "2023.03.21"]
[WhiteClock "0:00:21"]
[BlackClock "0:00:14"]

1. b3 {[%clk 0:02:57]}  a5 {[%clk 0:02:57]} 2. Bb2 {[%clk 0:02:58]}  a4 {[%clk 0:02:57]} 3. bxa4 {[%clk 0:02:57]}  Rxa4 {[%clk 0:02:57]} 4. Nf3 {[%clk 0:02:58]}  Rb4 {[%clk 0:02:57]} 5. Bc3 {[%clk 0:02:58]}  Rb6 {[%clk 0:02:57]} 6. Bd4 {[%clk 0:02:58]}  Rg6 {[%clk 0:02:56]} 7. g3 {[%clk 0:02:57]}  Nc6 {[%clk 0:02:55]} 8. Bb2 {[%clk 0:02:56]}  h5 {[%clk 0:02:56]} 9. Bg2 {[%clk 0:02:57]}  h4 {[%clk 0:02:56]} 10. c4 {[%clk 0:02:55]}  h3 {[%clk 0:02:53]} 11. Bf1 {[%clk 0:02:55]}  d6 {[%clk 0:02:53]} 12. Nc3 {[%clk 0:02:55]}  e5 {[%clk 0:02:53]} 13. d3 {[%clk 0:02:55]}  Nf6 {[%clk 0:02:53]} 14. Qd2 {[%clk 0:02:55]}  Bg4 {[%clk 0:02:53]} 15. Nh4 {[%clk 0:02:55]}  Rxh4 {[%clk 0:02:50]} 16. gxh4 {[%clk 0:02:55]}  Nd4 {[%clk 0:02:51]} 17. O-O-O {[%clk 0:02:54]}  c6 {[%clk 0:02:49]} 18. Rg1 {[%clk 0:02:54]}  b5 {[%clk 0:02:49]} 19. cxb5 {[%clk 0:02:53]}  cxb5 {[%clk 0:02:48]} 20. f3 {[%clk 0:02:54]}  Be6 {[%clk 0:02:47]} 21. Rxg6 {[%clk 0:02:54]}  fxg6 {[%clk 0:02:48]} 22. e3 {[%clk 0:02:53]}  Nf5 {[%clk 0:02:41]} 23. Nxb5 {[%clk 0:02:50]}  Qb6 {[%clk 0:02:33]} 24. d4 {[%clk 0:02:48]}  e4 {[%clk 0:02:33]} 25. fxe4 {[%clk 0:02:40]}  Nxe4 {[%clk 0:02:33]} 26. Qc2 {[%clk 0:02:41]}  d5 {[%clk 0:02:32]} 27. Nc7+ {[%clk 0:02:37]}  Kf7 {[%clk 0:02:30]} 28. Nxe6 {[%clk 0:02:36]}  Qxe6 {[%clk 0:02:31]} 29. Bxh3 {[%clk 0:02:35]}  Kg8 {[%clk 0:02:23]} 30. Rf1 {[%clk 0:02:33]}  Qa6 {[%clk 0:02:17]} 31. Qb3 {[%clk 0:02:28]}  Qc6+ {[%clk 0:02:10]} 32. Kd1 {[%clk 0:02:25]}  Ned6 {[%clk 0:02:01]} 33. Bxf5 {[%clk 0:02:22]}  gxf5 {[%clk 0:02:00]} 34. Ba3 {[%clk 0:02:21]}  Qa6 {[%clk 0:01:51]} 35. Re1 {[%clk 0:02:14]}  Ne4 {[%clk 0:01:38]} 36. Bxf8 {[%clk 0:01:56]}  Kxf8 {[%clk 0:01:38]} 37. a3 {[%clk 0:01:52]}  Kg8 {[%clk 0:01:16]} 38. Qxd5+ {[%clk 0:01:51]}  Kh8 {[%clk 0:01:17]} 39. Qb3 {[%clk 0:01:42]}  Qa5 {[%clk 0:01:16]} 40. Qb4 {[%clk 0:01:40]}  Qa6 {[%clk 0:01:16]} 41. Qb3 {[%clk 0:01:35]}  Qa5 {[%clk 0:01:14]} 42. Re2 {[%clk 0:01:34]}  Nc3+ {[%clk 0:01:13]} 43. Ke1 {[%clk 0:01:33]}  Ne4+ {[%clk 0:01:13]} 44. Kf1 {[%clk 0:01:33]}  Qa6 {[%clk 0:01:13]} 45. Qc2 {[%clk 0:01:22]}  Kh7 {[%clk 0:01:09]} 46. a4 {[%clk 0:01:15]}  Qa8 {[%clk 0:00:51]} 47. Rg2 {[%clk 0:01:10]}  Nd6 {[%clk 0:00:45]} 48. Qc7 {[%clk 0:01:02]}  Qf3+ {[%clk 0:00:44]} 49. Rf2 {[%clk 0:00:47]}  Qd1+ {[%clk 0:00:43]} 50. Kg2 {[%clk 0:00:47]}  Qg4+ {[%clk 0:00:44]} 51. Kf1 {[%clk 0:00:45]}  Ne4 {[%clk 0:00:44]} 52. Qf4 {[%clk 0:00:42]}  Qd1+ {[%clk 0:00:31]} 53. Kg2 {[%clk 0:00:42]}  g6 {[%clk 0:00:31]} 54. a5 {[%clk 0:00:40]}  Nxf2 {[%clk 0:00:30]} 55. Qxf2 {[%clk 0:00:39]}  Qg4+ {[%clk 0:00:28]} 56. Qg3 {[%clk 0:00:38]}  Qe2+ {[%clk 0:00:29]} 57. Kh3 {[%clk 0:00:36]}  Qf1+ {[%clk 0:00:29]} 58. Qg2 {[%clk 0:00:36]}  Qe1 {[%clk 0:00:29]} 59. Qf3 {[%clk 0:00:26]}  Qxa5 {[%clk 0:00:28]} 60. d5 {[%clk 0:00:27]}  Qc5 {[%clk 0:00:24]} 61. h5 {[%clk 0:00:25]}  Kh6 {[%clk 0:00:20]} 62. hxg6 {[%clk 0:00:23]}  Kxg6 {[%clk 0:00:21]} 63. Kg3 {[%clk 0:00:23]}  Qb4 {[%clk 0:00:19]} 64. h4 {[%clk 0:00:23]}  Qe1+ {[%clk 0:00:19]} 65. Qf2 {[%clk 0:00:23]}  Qd1 {[%clk 0:00:20]} 66. Qf3 {[%clk 0:00:21]}  Qe1+ {[%clk 0:00:19]} 67. Qf2 {[%clk 0:00:20]}  Qd1 {[%clk 0:00:19]} 68. Kh2 {[%clk 0:00:19]}  Kf6 {[%clk 0:00:16]} 69. Qg2 {[%clk 0:00:18]}  Qe1 {[%clk 0:00:14]} 70. Qg5+ {[%clk 0:00:18]}  Kf7 {[%clk 0:00:15]} 71. h5 {[%clk 0:00:18]}  Qd2+ {[%clk 0:00:14]} 72. Kg3 {[%clk 0:00:17]}  Qxd5 {[%clk 0:00:14]} 73. h6 {[%clk 0:00:18]}  Qe5+ {[%clk 0:00:14]} 74. Kf3 {[%clk 0:00:18]}  Qe4+ {[%clk 0:00:14]} 75. Kf2 {[%clk 0:00:18]}  Qc2+ {[%clk 0:00:14]} 76. Kg3 {[%clk 0:00:19]}  Qc7+ {[%clk 0:00:14]} 77. Qf4 {[%clk 0:00:19]}  Qd7 {[%clk 0:00:13]} 78. Kh4 {[%clk 0:00:19]}  Kg6 {[%clk 0:00:12]} 79. Qg5+ {[%clk 0:00:20]}  Kh7 {[%clk 0:00:13]} 80. Qg7+ {[%clk 0:00:20]}  Qxg7 {[%clk 0:00:12]} 81. hxg7 {[%clk 0:00:20]}  f4 {[%clk 0:00:13]} 82. exf4 {[%clk 0:00:20]}  Kxg7 {[%clk 0:00:13]} 83. Kg5 {[%clk 0:00:20]}  Kf7 {[%clk 0:00:14]} 84. Kf5 {[%clk 0:00:21]} 1-0


[Site "https://www.chess.com"]